Workbook

Sheet Gaussian
A1: Mean f | B1: Variance | C1: (Gaussian)
A2: 0.3 | B2: 0.005
A4: f | B4: P(f) | C4: Integral of P(f)df | D4: Integral of f P df | E4: Integral of (f-fbar) P df
A5: 0 | B5: =EXP(-((A5-$A$2)^2)/(2*$B$2))/SQRT(2*3.141592*$B$2) -> 0.0006962653322
A6: =A5+0.025 -> 0.025 | B6: =EXP(-((A6-$A$2)^2)/(2*$B$2))/SQRT(2*3.141592*$B$2) -> 0.00293138654 | C6: =(B5+B6)/2*(A6-A5) -> 4.534564841e-05 | D6: =(A5*B5+A6*B6)/2*(A6-A5) -> 9.160582939e-07 | E6: =(((A5-$A$2)^2)*B5+((A6-$A$2)^2)*B6)/2*(A6-A5) -> 3.554374838e-06
A7: =A6+0.025 -> 0.05 | B7: 0.01089142228 | C7: 0.0001727851103 | D7: =(A6*B6+A7*B7)/2*(A7-A6) -> 7.723197222e-06 | E7: =(((A6-$A$2)^2)*B6+((A7-$A$2)^2)*B7)/2*(A7-A6) -> 1.128e-05
A8: 0.075 | B8: 0.03571159882 | C8: 0.0005825377639 | D8: 4.028676283e-05 | E8: 3.110766979e-05
A9: 0.1 | B9: 0.1033349375 | C9: 0.001738081704 | D9: 0.0001626482958 | E9: 7.426621489e-05
A10: 0.125 | B10: 0.2638750071 | C10: 0.004590124308 | D10: 0.0005414733705 | E10: 0.0001526821199
A11: 0.15 | B11: 0.594651508 | C11: 0.01073158144 | D11: 0.001527276276 | E11: 0.0002682603878
A12: 0.175 | B12: 1.182605735 | C12: 0.02221571554 | D12: 0.003701921623 | E12: 0.0003982234193
A13: 0.2 | B13: 2.075537703 | C13: 0.04072679298 | D13: 0.007775794303 | E13: 0.0004904198955
A14: 0.225 | B14: 3.21465568 | C14: 0.06612741729 | D14: 0.01423006336 | E14: 0.0004854726904
A15: 0.25 | B15: 4.393913352 | C15: 0.0951071129 | D15: 0.02277219833 | E15: 0.0003633402698
A16: 0.275 | B16: 5.300071198 | C16: 0.1211748069 | D16: 0.03194997397 | E16: 0.0001787165985
A17: 0.3 | B17: 5.641896422 | C17: 0.1367745953 | D17: 0.03937610633 | E17: 4.140680624e-05
A18: 0.325 | B18: 5.300071198 | C18: 0.1367745953 | D18: 0.04268865083 | E18: 4.140680624e-05
A19: 0.35 | B19: 4.393913352 | C19: 0.1211748069 | D19: 0.04075491016 | E19: 0.0001787165985
A20: 0.375 | B20: 3.21465568 | C20: 0.0951071129 | D20: 0.03429206942 | E20: 0.0003633402698
A21: 0.4 | B21: 2.075537703 | C21: 0.06612741729 | D21: 0.02544638702 | E21: 0.0004854726904
A22: 0.425 | B22: 1.182605735 | C22: 0.04072679298 | D22: 0.01666028148 | E22: 0.0004904198955
A23: =A22+0.025 -> 0.45 | B23: 0.594651508 | C23: 0.02221571554 | D23: 0.009627507701 | E23: 0.0003982234193
A24: 0.475 | B24: 0.2638750071 | C24: 0.01073158144 | D24: 0.004911672587 | E24: 0.0002682603878
A25: 0.5 | B25: =EXP(-((A25-$A$2)^2)/(2*$B$2))/SQRT(2*3.141592*$B$2) -> 0.1033349375 | C25: 0.004590124308 | D25: 0.002212601214 | E25: 0.0001526821199
A26: 0.525 | B26: 0.03571159882 | C26: 0.001738081704 | D26: 0.0008802007268 | E26: 7.426621489e-05
A27: 0.55 | B27: 0.01089142228 | C27: 0.0005825377639 | D27: 0.0003092358955 | E27: 3.110766979e-05
A28: 0.575 | B28: 0.00293138654 | C28: 0.0001727851103 | D28: 9.594786897e-05 | E28: 1.128e-05
A29: 0.6 | B29: 0.0006962653322 | C29: 4.534564841e-05 | D29: 2.629133075e-05 | E29: 3.554374838e-06
A30: 0.625 | B30: 0.0001459451421 | C30: 1.052763093e-05 | D30: 6.362186414e-06 | E30: 9.759916941e-07
A31: 0.65 | B31: 2.69971367e-05 | C31: 2.161778485e-06 | D31: 1.359548158e-06 | E31: 2.34032561e-07
A32: 0.675 | B32: 4.407161415e-06 | C32: 3.925537264e-07 | D32: 2.565371601e-07 | E32: 4.908632899e-08
A33: 0.7 | B33: 6.349117996e-07 | C33: 6.302591518e-08 | D33: 4.274090268e-08 | E33: 9.016787023e-09
A34: 0.725 | B34: 8.071997699e-08 | C34: 8.945397208e-09 | D34: 6.287003038e-09 | E34: 1.452074172e-09
A35: 0.75 | B35: 9.056530422e-09 | C35: 1.122206343e-09 | D35: 8.164297642e-10 | E35: 2.051749157e-10
A36: 0.775 | B36: 8.96717945e-10 | C36: 1.244156046e-10 | D36: 9.359192779e-11 | E36: 2.545336746e-11
A37: 0.8 | B37: 7.835434081e-11 | C37: 1.218840357e-11 | D37: 9.4704985e-12 | E37: 2.773882144e-12
A38: 0.825 | B38: 6.042037987e-12 | C38: 1.054954735e-12 | D38: 8.458519248e-13 | E38: 2.65674024e-13
A39: =A38+0.025 -> 0.85 | B39: 4.11165845e-13 | C39: 8.066504789e-14 | D39: 6.667715384e-14 | E39: 2.237142985e-14
A40: 0.875 | B40: 2.469242827e-14 | C40: 5.448228416e-15 | D40: 4.638710538e-15 | E40: 1.656770028e-15
A41: 0.9 | B41: =EXP(-((A41-$A$2)^2)/(2*$B$2))/SQRT(2*3.141592*$B$2) -> 1.308650756e-15 | C41: 3.250134879e-16 | D41: 2.847957552e-16 | E41: 1.079381046e-16
A42: 0.925 | B42: =EXP(-((A42-$A$2)^2)/(2*$B$2))/SQRT(2*3.141592*$B$2) -> 6.120641033e-17 | C42: 1.712321458e-17 | D42: 1.543002012e-17 | E42: 6.187787826e-18
A43: 0.95 | B43: =EXP(-((A43-$A$2)^2)/(2*$B$2))/SQRT(2*3.141592*$B$2) -> 2.526290264e-18 | C43: 7.966587574e-19 | D43: 7.376988163e-19 | E43: 3.122013959e-19
A44: 0.975 | B44: =EXP(-((A44-$A$2)^2)/(2*$B$2))/SQRT(2*3.141592*$B$2) -> 9.202011615e-20 | C44: 3.272887976e-20 | D44: 3.112119205e-20 | E44: 1.386605378e-20
A45: 1 | B45: =EXP(-((A45-$A$2)^2)/(2*$B$2))/SQRT(2*3.141592*$B$2) -> 2.957981787e-21 | C45: 1.187226224e-21 | D45: 1.158469938e-21 | E45: 5.422009562e-22
B46: Integral | C46: =SUM(C6:C45) -> 0.9999869488 | D46: =SUM(D6:D45) -> 0.3000001663 | E46: =SUM(E6:E45) -> 0.004998730707 | F46: This is a consistency check!
A48: A. Calculate Value of f at Stoichiometric Conditions
A49: CH4-Air | B49: Molar flow rate | C49: Mass Flow | D49: Stoich. f | E49: Enthalpy (kcal/mole) | F49: Enthalpy (kcal/100 g)
A50: CH4 | B50: 1 | C50: =16*B50 -> 16 | D50: =C50/(C50+C51+C52) -> 0.05504587156 | E50: -17.889 | F50: =E50/16*100 -> -111.80625
A51: O2 | B51: =2*B50 -> 2 | C51: =32*B51 -> 64 | E51: 0 | F51: 0
A52: N2 | B52: =79/21*B51 -> 7.523809524 | C52: =28*B52 -> 210.6666667 | E52: 0 | F52: 0
A54: B. Calculate Elemental Compositions as a Function of f | G54: C. Calculate Equilibrium Temperature and Compositions from
G55: Elemental Compositions and Mixture Enthalpies Using EDWRDS
H56: Mole Fractions
A57: f | B57: C | C57: H | D57: O | E57: N | F57: Enthalpy | G57: T (equil) | H57: CO2 | I57: CO | J57: CH4 | K57: O2 | L57: MW | M57: ER
A58: 0 | B58: 0 | C58: 0 | D58: =C51/(C51+C52) -> 0.2330097087 | E58: =C52/(C51+C52) -> 0.7669902913 | F58: =F51 -> 0 | G58: 300 | H58: 0 | I58: 0 | J58: 0 | K58: 0.21 | L58: 29 | M58: 0
A59: =A58+0.02 -> 0.02 | B59: =A59*B$68+(1-A59)*B$58 -> 0.015 | C59: =B59*C$68+(1-B59)*C$58 -> 0.00375 | D59: 0.2321359223 | E59: 0.5889442926 | F59: =A59*$F$68+(1-A59)*$F$58 -> -2.236125 | G59: 1173 | H59: 0.0354 | I59: 0 | J59: 0 | K59: 0.1318 | L59: 28.4 | M59: 0.3494
A60: =A59+0.02 -> 0.04 | B60: 0.03 | C60: 0.0075 | D60: 0.2312621359 | E60: 0.5896144783 | F60: =A60*$F$68+(1-A60)*$F$58 -> -4.47225 | G60: 1860 | H60: 0.0696 | I60: 0.00012 | J60: 0 | K60: 0.0545 | L60: 27.95 | M60: 0.7134
A61: =A60+0.02 -> 0.06 | B61: 0.045 | C61: 0.01125 | D61: 0.2303883495 | E61: 0.590284664 | F61: -6.708375 | G61: 2215 | H61: 0.0764 | I61: 0.0262 | J61: 0 | K61: 0.0004 | L61: 27.01 | M61: 1.093
A62: =A61+0.02 -> 0.08 | B62: 0.06 | C62: 0.015 | D62: 0.2295145631 | E62: 0.5909548497 | F62: -8.9445 | G62: 1913 | H62: 0.0413 | I62: 0.08398 | J62: 0 | K62: 0 | L62: 24.9 | M62: 1.488
A63: =A62+0.02 -> 0.1 | B63: 0.075 | C63: 0.01875 | D63: 0.2286407767 | E63: 0.5916250353 | F63: -11.180625 | G63: 1626 | H63: 0.0299 | I63: 0.11473 | J63: 0 | K63: 0 | L63: 23.07 | M63: 1.902
A64: =A63+0.1 -> 0.2 | B64: 0.15 | C64: 0.0375 | D64: 0.2242718447 | E64: 0.5949759638 | F64: -22.36125 | G64: 933 | H64: 0.03 | I64: 0.10148 | J64: 0.028 | K64: 0 | L64: 17.75
A65: 0.4 | B65: 0.3 | C65: 0.075 | D65: 0.2155339806 | E65: 0.6016778207 | F65: -44.7225 | G65: 782 | H65: 0.015 | I65: 0.0073 | J65: 0.22 | K65: 0 | L65: 14.96
A66: 0.6 | B66: 0.45 | C66: 0.1125 | D66: 0.2067961165 | E66: 0.6083796776 | F66: -67.08375 | G66: 666 | H66: 0.003 | J66: 0.535 | K66: 0 | L66: 15.81
A67: 0.8 | B67: 0.6 | C67: 0.15 | D67: 0.1980582524 | E67: 0.6150815345 | F67: -89.445 | G67: 528 | H67: 0.0003 | J67: 0.825 | K67: 0 | L67: 16.68
A68: 1 | B68: =12/16 -> 0.75 | C68: =4/16 -> 0.25 | D68: 0 | E68: 0 | F68: =F50 -> -111.80625 | G68: 300 | H68: 0 | J68: 1 | K68: 0 | L68: 16 | M68: inf
A71: D. Plot f vs. T
A72: f | B72: T | C72: CO2 | D72: CH4 | E72: O2
A73: =A58 -> 0 | B73: =G58 -> 300 | C73: 0 | D73: 0 | E73: 0.21
A74: 0.02 | B74: 1173 | C74: 0.0354 | D74: 0 | E74: 0.1318
A75: 0.04 | B75: 1860 | C75: 0.0696 | D75: 0 | E75: 0.0545
A76: 0.06 | B76: 2215 | C76: 0.0764 | D76: 0 | E76: 0.0004
A77: 0.08 | B77: 1913 | C77: 0.0413 | D77: 0 | E77: 0
A78: 0.1 | B78: 1626 | C78: 0.0299 | D78: 0 | E78: 0
A79: 0.2 | B79: 933 | C79: 0.03 | D79: 0.028 | E79: 0
A80: 0.4 | B80: 782 | C80: 0.015 | D80: 0.22 | E80: 0
A81: 0.6 | B81: 666 | C81: 0.003 | D81: 0.535 | E81: 0
A82: 0.8 | B82: 528 | C82: 0.0003 | D82: 0.825 | E82: 0
A83: 1 | B83: 300 | C83: 0 | D83: 1 | E83: 0
A98: f | B98: T(K) | C98: P(f) | D98: P(f)*T | E98: Integral
A99: =A73 -> 0 | B99: 300 | C99: =EXP(-((A99-$A$2)^2)/(2*$B$2))/SQRT(2*3.141592*$B$2) -> 0.0006962653322 | D99: =B99*C99 -> 0.2088795996
A100: =A74 -> 0.02 | B100: 1173 | C100: =EXP(-((A100-$A$2)^2)/(2*$B$2))/SQRT(2*3.141592*$B$2) -> 0.002221039952 | D100: 2.605279864 | E100: =(D99+D100)/2*(A100-A99) -> 0.02814159463
A101: =A75 -> 0.04 | B101: 1860 | C101: 0.006540250929 | D101: 12.16486673 | E101: =(D100+D101)/2*(A101-A100) -> 0.1477014659
A102: =A76 -> 0.06 | B102: 2215 | C102: 0.01777824525 | D102: 39.37881324 | E102: 0.5154367996
A103: =A77 -> 0.08 | B103: 1913 | C103: 0.04461077997 | D103: 85.34042207 | E103: 1.247192353
A104: 0.09 | B104: =B103-(B103-B105)/(A105-A103)*(A104-A103) -> 1769.5 | C104: 0.06857825713 | D104: 121.349226 | E104: 1.03344824
A105: =A78 -> 0.1 | B105: 1626 | C105: 0.1033349375 | D105: 168.0226084 | E105: 1.446859172
A106: 0.12 | B106: =$B$105-($B$105-B110)/($A$110-$A$105)*(A106-$A$105) -> 1487.4 | C106: 0.2209586396 | D106: 328.6538806 | E106: 4.96676489
A107: 0.14 | B107: =$B$105-($B$105-B120)/($A$110-$A$105)*(A107-$A$105) -> 1288.4 | C107: 0.4361453385 | D107: 561.9296542 | E107: 8.905835348
A108: 0.16 | B108: =$B$105-($B$105-B130)/($A$110-$A$105)*(A108-$A$105) -> 1050 | C108: 0.7947086211 | D108: 834.4440521 | E108: 13.96373706
A109: 0.18 | B109: =$B$105-($B$105-B131)/($A$110-$A$105)*(A109-$A$105) -> 747.6 | C109: 1.336721874 | D109: 999.3332731 | E109: 18.33777325
A110: =A79 -> 0.2 | B110: 933 | C110: 2.075537703 | D110: 1936.476677 | E110: 29.3580995
A111: =A110+0.02 -> 0.22 | B111: =$B$110-($B$110-$B$120)/($A$120-$A$110)*(A111-$A$110) -> 917.9 | C111: 2.974929241 | D111: =B111*C111 -> 2730.68755 | E111: 46.67164227
A112: =A111+0.02 -> 0.24 | B112: =$B$110-($B$110-$B$120)/($A$120-$A$110)*(A112-$A$110) -> 902.8 | C112: 3.936217568 | D112: 3553.61722 | E112: 62.8430477
A113: 0.26 | B113: 887.7 | C113: 4.807706994 | D113: 4267.801499 | E113: 78.21418719
A114: 0.28 | B114: 872.6 | C114: 5.420674499 | D114: 4730.080568 | E114: 89.97882067
A115: 0.3 | B115: 857.5 | C115: 5.641896422 | D115: 4837.926182 | E115: 95.6800675
A116: 0.32 | B116: 842.4 | C116: 5.420674499 | D116: 4566.376198 | E116: 94.0430238
A117: 0.34 | B117: 827.3 | C117: 4.807706994 | D117: 3977.415996 | E117: 85.43792195
A118: 0.36 | B118: 812.2 | C118: 3.936217568 | D118: 3196.995909 | E118: 71.74411905
A119: 0.38 | B119: 797.1 | C119: 2.974929241 | D119: 2371.316098 | E119: 55.68312007
A120: =A80 -> 0.4 | B120: 782 | C120: 2.075537703 | D120: =B120*C120 -> 1623.070484 | E120: 39.94386582
A121: 0.42 | B121: =$B$120-($B$120-$B$130)/($A$130-$A$120)*(A121-$A$120) -> 770.4 | C121: 1.336721874 | D121: =B121*C121 -> 1029.810532 | E121: 26.52881016
A122: 0.44 | B122: =$B$120-($B$120-$B$130)/($A$130-$A$120)*(A122-$A$120) -> 758.8 | C122: 0.7947086211 | D122: 603.0249017 | E122: 16.32835433
A123: 0.46 | B123: 747.2 | C123: 0.4361453385 | D123: 325.887797 | E123: 9.289126986
A124: 0.48 | B124: 735.6 | C124: 0.2209586396 | D124: 162.5371753 | E124: 4.884249723
A125: 0.5 | B125: 724 | C125: 0.1033349375 | D125: 74.81449476 | E125: 2.373516701
A126: 0.52 | B126: 712.4 | C126: 0.04461077997 | D126: 31.78071965 | E126: 1.065952144
A127: 0.54 | B127: 700.8 | C127: 0.01777824525 | D127: 12.45899427 | E127: 0.4423971392
A128: 0.56 | B128: 689.2 | C128: 0.006540250929 | D128: 4.50754094 | E128: 0.1696653521
A129: 0.58 | B129: 677.6 | C129: 0.002221039952 | D129: 1.504976672 | E129: 0.06012517612
A130: =A81 -> 0.6 | B130: 666 | C130: 0.0006962653322 | D130: =B130*C130 -> 0.4637127112 | E130: 0.01968689383
A131: =A82 -> 0.8 | B131: 528 | C131: 7.835434081e-11 | D131: =B131*C131 -> 4.137109195e-08 | E131: 0.04637127526
A132: =A83 -> 1 | B132: 300 | C132: 2.957981787e-21 | D132: =B132*C132 -> 8.87394536e-19 | E132: 4.137109195e-09
C134: Mean Temp (K) | D134: =SUM(E100:E132) -> 861.3990616
B146: Interm. of Pri | C146: 0
B147: Interm. of Sec | C147: =1-C46 -> 1.305117234e-05
B150: New Mean | C150: =D134+C146*G67+C147*G68 -> 861.4029769

Sheet Beta
A1: Mean f | B1: Variance | C1: (Beta)
A2: 0.3 | B2: 0.005 | C2: a=f*(f*(1-f)/g-1) | E2: =A2*(A2*(1-A2)/B2-1) -> 12.3
C3: b=(1-f)*(f*(1-f)/g-1) | E3: =(1-A2)*(A2*(1-A2)/B2-1) -> 28.7
A4: f | B4: P(f) | C4: Norm P(f) | D4: Integral of P(f)df | E4: Integral of f P df | F4: Integral of (f-fbar) P df
A5: 0 | B5: =(A5^($E$2-1))*((1-A5)^($E$3-1)) -> 0 | C5: =B5/$D$47 -> 0
A6: =A5+0.025 -> 0.025 | B6: =(A6^($E$2-1))*((1-A6)^($E$3-1)) -> 3.909758683e-19 | C6: =B6/$D$47 -> 3.422444496e-08 | D6: =(B5+B6)/2*(A6-A5) -> 4.887198354e-21 | E6: =(A5*B5+A6*B6)/2*(A6-A5) -> 1.221799588e-22 | F6: =(((A5-$A$2)^2)*B5+((A6-$A$2)^2)*B6)/2*(A6-A5) -> 3.695943755e-22
A7: =A6+0.025 -> 0.05 | B7: 4.800703848e-16 | C7: 4.202341831e-05 | D7: =(B6+B7)/2*(A7-A6) -> 6.005767009e-18 | E7: =(A6*B6+A7*B7)/2*(A7-A6) -> 3.001661705e-19 | F7: =(((A6-$A$2)^2)*B6+((A7-$A$2)^2)*B7)/2*(A7-A6) -> 3.754245825e-19
A8: 0.075 | B8: 2.240362389e-14 | C8: 0.001961122553 | D8: 2.860461785e-16 | E8: 2.130344139e-17 | F8: 1.455234823e-17
A9: 0.1 | B9: 2.70718236e-13 | C9: 0.02369757859 | D9: 3.664023248e-15 | E9: 3.594011924e-16 | F9: 1.495364112e-16
A10: 0.125 | B10: 1.544209485e-12 | C10: 0.1351738478 | D10: 2.268659651e-14 | E10: 2.751225115e-15 | F10: 7.265018115e-16
A11: 0.15 | B11: 5.429195364e-12 | C11: 0.4752497865 | D11: 8.716756062e-14 | E11: 1.259256863e-14 | F11: 2.11810389e-15
A12: 0.175 | B12: 1.355514991e-11 | C12: 1.186562956 | D12: 2.37304316e-13 | E12: 3.983163174e-14 | F12: 4.174451413e-15
A13: 0.2 | B13: 2.61355468e-11 | C13: 2.287799978 | D13: 4.961337089e-13 | E13: 9.499075743e-14 | F13: 5.914433567e-15
A14: 0.225 | B14: 4.105060991e-11 | C14: 3.593404232 | D14: 8.398269589e-13 | E14: 1.807937074e-13 | F14: 6.153314359e-15
A15: 0.25 | B15: 5.444012252e-11 | C15: 4.765467969 | D15: 1.193634155e-12 | E15: 2.855802233e-13 | F15: 4.587624838e-15
A16: 0.275 | B16: 6.249168318e-11 | C16: 5.470268998 | D16: 1.461647571e-12 | E16: 3.849405438e-13 | F16: 2.189470104e-15
A17: 0.3 | B17: 6.319546106e-11 | C17: 5.531874866 | D17: 1.571089303e-12 | E17: 4.517981399e-13 | F17: 4.882162748e-16
A18: 0.325 | B18: 5.701596596e-11 | C18: 4.990946877 | D18: 1.502642838e-12 | E18: 4.686103407e-13 | F18: 4.45437234e-16
A19: 0.35 | B19: 4.630937078e-11 | C19: 4.053734872 | D19: 1.291566709e-12 | E19: 4.342308589e-13 | F19: 1.892605071e-15
A20: 0.375 | B20: 3.407452463e-11 | C20: 2.982745963 | D20: 1.004798693e-12 | E20: 3.623278314e-13 | F20: 3.84303285e-15
A21: 0.4 | B21: 2.280696718e-11 | C21: 1.996429592 | D21: 7.110186476e-13 | E21: 2.737591701e-13 | F21: 5.246735911e-15
A22: 0.425 | B22: 1.391855684e-11 | C22: 1.218374128 | D22: 4.590690503e-13 | E22: 1.879771691e-13 | F22: 5.569339031e-15
A23: 0.45 | B23: 7.750824523e-12 | C23: 0.6784758058 | D23: 2.708672671e-13 | E23: 1.175407212e-13 | F23: 4.898387531e-15
A24: 0.475 | B24: 3.935958341e-12 | C24: 0.3445378616 | D24: 1.460847858e-13 | E24: 6.696814059e-14 | F24: 3.686653449e-15
A25: 0.5 | B25: 1.818989404e-12 | C25: 0.1592269697 | D25: 7.193684681e-14 | E25: 3.473843642e-14 | F25: 2.416228754e-15
A26: 0.525 | B26: 7.624530659e-13 | C26: 0.06674205521 | D26: 3.226803087e-14 | E26: 1.637228202e-14 | F26: 1.391984533e-15
A27: 0.55 | B27: 2.884596172e-13 | C27: 0.02525058729 | D27: 1.313640854e-14 | E27: 6.986758113e-15 | F27: 7.078489067e-16
A28: 0.575 | B28: 9.786333405e-14 | C28: 0.008566560142 | D28: 4.829036891e-15 | E28: 2.686552582e-15 | F28: 3.178705089e-16
A29: 0.6 | B29: 2.952370717e-14 | C29: 0.002584385823 | D29: 1.592338015e-15 | E29: 9.248205172e-16 | F29: 1.257256035e-16
A30: 0.625 | B30: 7.836286614e-15 | C30: 0.0006859568113 | D30: 4.669999223e-16 | E30: 2.826487929e-16 | F30: 4.356051774e-17
A31: 0.65 | B31: 1.805534364e-15 | C31: 0.00015804917 | D31: 1.205227622e-16 | E31: 7.589095588e-17 | F31: 1.311107167e-17
A32: 0.675 | B32: 3.550599864e-16 | C32: 3.108051404e-05 | D32: 2.700742938e-17 | E32: 1.766578534e-17 | F32: 3.388853377e-18
A33: 0.7 | B33: 5.832659286e-17 | C33: 5.105673851e-06 | D33: 5.167332241e-18 | E33: 3.506176323e-18 | F33: 7.407820681e-19
A34: 0.725 | B34: 7.786371009e-18 | C34: 6.815874013e-07 | D34: 8.264120483e-19 | E34: 5.809216748e-19 | F34: 1.342333515e-19
A35: 0.75 | B35: 8.149491602e-19 | C35: 7.133735082e-08 | D35: 1.075165021e-19 | E35: 7.820413564e-20 | F35: 1.964300586e-20
A36: 0.775 | B36: 6.376244912e-20 | C36: 5.581506705e-09 | D36: 1.098389512e-20 | E36: 8.257847103e-21 | F36: 2.242670094e-21
A37: 0.8 | B37: 3.495004449e-21 | C37: 3.059385428e-10 | D37: 8.407181696e-22 | E37: 6.526487704e-22 | F37: 1.907519212e-22
A38: 0.825 | B38: 1.224851863e-22 | C38: 1.072185743e-11 | D38: 4.521862044e-23 | E38: 3.621317297e-23 | F38: 1.134388865e-23
A39: 0.85 | B39: 2.399726439e-24 | C39: 2.100623391e-13 | D39: 1.56106141e-24 | E39: 1.288625578e-24 | F39: 4.310737092e-25
A40: 0.875 | B40: 2.133528062e-26 | C40: 1.867604107e-15 | D40: 3.02632715e-26 | E40: 2.573044805e-26 | F40: 9.162140313e-27
A41: 0.9 | B41: 6.066530099e-29 | C41: 5.310394894e-18 | D41: 2.67449324e-28 | E41: 2.340371164e-28 | F41: 8.84477083e-29
A42: 0.925 | B42: 2.861531796e-32 | C42: 2.504869108e-21 | D42: 7.586739538e-31 | E42: 6.828155007e-31 | F42: 2.731335777e-31
A43: 0.95 | B43: 5.125613559e-37 | C43: 4.486754641e-26 | D43: 3.576978815e-34 | E43: 3.308707005e-34 | F43: 1.397259392e-34
A44: 0.975 | B44: 3.152756267e-45 | C44: 2.759795222e-34 | D44: 6.407016989e-39 | E44: 6.08666614e-39 | F44: 2.706964679e-39
A45: 1 | B45: 0 | C45: 0 | D45: 3.940945333e-47 | E45: 3.8424217e-47 | F45: 1.795593218e-47
A46: sum | B46: =SUM(B5:B45) -> 4.569551018e-10
B47: Integral | D47: =SUM(D6:D45) -> 1.142387755e-11 | E47: =SUM(E6:E45) -> 3.427163264e-12 | F47: =SUM(F6:F45) -> 5.711938774e-14 | G47: This is a consistency check!
A49: A. Calculate Value of f at Stoichiometric Conditions
A50: CH4-Air | B50: Molar flow rate | C50: Mass Flow | D50: Stoich. f | E50: Enthalpy (kcal/mole) | F50: Enthalpy (kcal/100 g)
A51: CH4 | B51: 1 | C51: =16*B51 -> 16 | D51: =C51/(C51+C52+C53) -> 0.05504587156 | E51: -17.889 | F51: =E51/16*100 -> -111.80625
A52: O2 | B52: =2*B51 -> 2 | C52: =32*B52 -> 64 | E52: 0 | F52: 0
A53: N2 | B53: =79/21*B52 -> 7.523809524 | C53: =28*B53 -> 210.6666667 | E53: 0 | F53: 0
A55: B. Calculate Elemental Compositions as a Function of f | G55: C. Calculate Equilibrium Temperature and Compositions from
G56: Elemental Compositions and Mixture Enthalpies Using EDWRDS
H57: Mole Fractions
A58: f | B58: C | C58: H | D58: O | E58: N | F58: Enthalpy | G58: T (equil) | H58: CO2 | I58: CO | J58: CH4 | K58: O2 | L58: MW | M58: ER
A59: 0 | B59: 0 | C59: 0 | D59: =C52/(C52+C53) -> 0.2330097087 | E59: =C53/(C52+C53) -> 0.7669902913 | F59: =F52 -> 0 | G59: 300 | H59: 0 | I59: 0 | J59: 0 | K59: 0.21 | L59: 29 | M59: 0
A60: =A59+0.02 -> 0.02 | B60: =A60*B$69+(1-A60)*B$59 -> 0.015 | C60: =B60*C$69+(1-B60)*C$59 -> 0.00375 | D60: =C60*D$69+(1-C60)*D$59 -> 0.2321359223 | E60: 0.5889442926 | F60: =A60*$F$69+(1-A60)*$F$59 -> -2.236125 | G60: 1173 | H60: 0.0354 | I60: 0 | J60: 0 | K60: 0.1318 | L60: 28.4 | M60: 0.3494
A61: =A60+0.02 -> 0.04 | B61: 0.03 | C61: =B61*C$69+(1-B61)*C$59 -> 0.0075 | D61: 0.2312621359 | E61: 0.5896144783 | F61: =A61*$F$69+(1-A61)*$F$59 -> -4.47225 | G61: 1860 | H61: 0.0696 | I61: 0.00012 | J61: 0 | K61: 0.0545 | L61: 27.95 | M61: 0.7134
A62: =A61+0.02 -> 0.06 | B62: 0.045 | C62: 0.01125 | D62: 0.2303883495 | E62: 0.590284664 | F62: -6.708375 | G62: 2215 | H62: 0.0764 | I62: 0.0262 | J62: 0 | K62: 0.0004 | L62: 27.01 | M62: 1.093
A63: =A62+0.02 -> 0.08 | B63: 0.06 | C63: 0.015 | D63: 0.2295145631 | E63: 0.5909548497 | F63: -8.9445 | G63: 1913 | H63: 0.0413 | I63: 0.08398 | J63: 0 | K63: 0 | L63: 24.9 | M63: 1.488
A64: =A63+0.02 -> 0.1 | B64: 0.075 | C64: 0.01875 | D64: 0.2286407767 | E64: 0.5916250353 | F64: -11.180625 | G64: 1626 | H64: 0.0299 | I64: 0.11473 | J64: 0 | K64: 0 | L64: 23.07 | M64: 1.902
A65: =A64+0.1 -> 0.2 | B65: 0.15 | C65: 0.0375 | D65: 0.2242718447 | E65: 0.5949759638 | F65: -22.36125 | G65: 933 | H65: 0.03 | I65: 0.10148 | J65: 0.028 | K65: 0 | L65: 17.75
A66: 0.4 | B66: 0.3 | C66: 0.075 | D66: 0.2155339806 | E66: 0.6016778207 | F66: -44.7225 | G66: 782 | H66: 0.015 | I66: 0.0073 | J66: 0.22 | K66: 0 | L66: 14.96
A67: 0.6 | B67: 0.45 | C67: 0.1125 | D67: 0.2067961165 | E67: 0.6083796776 | F67: -67.08375 | G67: 666 | H67: 0.003 | J67: 0.535 | K67: 0 | L67: 15.81
A68: 0.8 | B68: 0.6 | C68: 0.15 | D68: 0.1980582524 | E68: 0.6150815345 | F68: -89.445 | G68: 528 | H68: 0.0003 | J68: 0.825 | K68: 0 | L68: 16.68
A69: 1 | B69: =12/16 -> 0.75 | C69: =4/16 -> 0.25 | D69: 0 | E69: 0 | F69: =F51 -> -111.80625 | G69: 300 | H69: 0 | J69: 1 | K69: 0 | L69: 16 | M69: inf
A72: D. Plot f vs. T
A73: f | B73: T | C73: CO2 | D73: CH4 | E73: O2
A74: =A59 -> 0 | B74: =G59 -> 300 | C74: 0 | D74: 0 | E74: 0.21
A75: 0.02 | B75: 1173 | C75: 0.0354 | D75: 0 | E75: 0.1318
A76: 0.04 | B76: 1860 | C76: 0.0696 | D76: 0 | E76: 0.0545
A77: 0.06 | B77: 2215 | C77: 0.0764 | D77: 0 | E77: 0.0004
A78: 0.08 | B78: 1913 | C78: 0.0413 | D78: 0 | E78: 0
A79: 0.1 | B79: 1626 | C79: 0.0299 | D79: 0 | E79: 0
A80: 0.2 | B80: 933 | C80: 0.03 | D80: 0.028 | E80: 0
A81: 0.4 | B81: 782 | C81: 0.015 | D81: 0.22 | E81: 0
A82: 0.6 | B82: 666 | C82: 0.003 | D82: 0.535 | E82: 0
A83: 0.8 | B83: 528 | C83: 0.0003 | D83: 0.825 | E83: 0
A84: 1 | B84: 300 | C84: 0 | D84: 1 | E84: 0
A99: f | B99: T(K) | C99: P(f) | D99: P(f)*T | E99: Integral
A100: =A74 -> 0 | B100: 300 | C100: =(A100^($E$2-1))*((1-A100)^($E$3-1))/$D$47 -> 0 | D100: =B100*C100 -> 0
A101: =A75 -> 0.02 | B101: 1173 | C101: =(A101^($E$2-1))*((1-A101)^($E$3-1))/$D$47 -> 3.168018496e-09 | D101: 3.716085696e-06 | E101: =(D100+D101)/2*(A101-A100) -> 3.716085696e-08
A102: =A76 -> 0.04 | B102: 1860 | C102: 4.512087552e-06 | D102: 0.008392482846 | E102: 8.396198932e-05
A103: =A77 -> 0.06 | B103: 2215 | C103: 0.0002460011486 | D103: 0.5448925441 | E103: 0.00553285027
A104: =A78 -> 0.08 | B104: 1913 | C104: 0.003499662237 | D104: 6.694853859 | E104: 0.07239746404
A105: 0.09 | B105: =B104-(B104-B106)/(A106-A104)*(A105-A104) -> 1769.5 | C105: 0.009785282873 | D105: 17.31505804 | E105: 0.1200495595
A106: =A79 -> 0.1 | B106: 1626 | C106: 0.02369757859 | D106: 38.53226279 | E106: 0.2792366042
A107: 0.12 | B107: =$B$106-($B$106-B111)/($A$111-$A$106)*(A107-$A$106) -> 1487.4 | C107: 0.09979402967 | D107: 148.4336397 | E107: 1.869659025
A108: 0.14 | B108: =$B$106-($B$106-B121)/($A$111-$A$106)*(A108-$A$106) -> 1288.4 | C108: 0.3013286067 | D108: 388.2317768 | E108: 5.366654166
A109: 0.16 | B109: =$B$106-($B$106-B131)/($A$111-$A$106)*(A109-$A$106) -> 1050 | C109: 0.7100329264 | D109: 745.5345727 | E109: 11.3376635
A110: 0.18 | B110: =$B$106-($B$106-B132)/($A$111-$A$106)*(A110-$A$106) -> 747.6 | C110: 1.378508599 | D110: 1030.573029 | E110: 17.76107601
A111: =A80 -> 0.2 | B111: 933 | C111: 2.287799978 | D111: 2134.51738 | E111: 31.65090408
A112: =A111+0.02 -> 0.22 | B112: =$B$111-($B$111-$B$121)/($A$121-$A$111)*(A112-$A$111) -> 917.9 | C112: 3.331066084 | D112: 3057.585559 | E112: 51.92102938
A113: =A112+0.02 -> 0.24 | B113: =$B$111-($B$111-$B$121)/($A$121-$A$111)*(A113-$A$111) -> 902.8 | C113: 4.336206922 | D113: 3914.727609 | E113: 69.72313167
A114: 0.26 | B114: 887.7 | C114: 5.118042989 | D114: 4543.286761 | E114: 84.5801437
A115: 0.28 | B115: 872.6 | C115: 5.535825172 | D115: 4830.561045 | E115: 93.73847807
A116: 0.3 | B116: 857.5 | C116: 5.531874866 | D116: 4743.582697 | E116: 95.74143742
A117: 0.32 | B117: 842.4 | C117: 5.138993848 | D117: 4329.088418 | E117: 90.72671115
A118: 0.34 | B118: 827.3 | C118: 4.459285084 | D118: 3689.16655 | E118: 80.18254968
A119: 0.36 | B119: 812.2 | C119: 3.627354481 | D119: 2946.13731 | E119: 66.3530386
A120: 0.38 | B120: 797.1 | C120: 2.773262005 | D120: 2210.567144 | E120: 51.56704454
A121: =A81 -> 0.4 | B121: 782 | C121: 1.996429592 | D121: 1561.207941 | E121: 37.71775085
A122: 0.42 | B122: =$B$121-($B$121-$B$131)/($A$131-$A$121)*(A122-$A$121) -> 770.4 | C122: 1.354749078 | D122: 1043.698689 | E122: 26.0490663
A123: 0.44 | B123: =$B$121-($B$121-$B$131)/($A$131-$A$121)*(A123-$A$121) -> 758.8 | C123: 0.8669819447 | D123: 657.8658996 | E123: 17.01564589
A124: 0.46 | B124: 747.2 | C124: 0.5231871948 | D124: 390.9254719 | E124: 10.48791372
A125: 0.48 | B125: 735.6 | C125: 0.2975123935 | D125: 218.8501166 | E125: 6.097755886
A126: 0.5 | B126: 724 | C126: 0.1592269697 | D126: 115.280326 | E126: 3.341304427
A127: 0.52 | B127: 712.4 | C127: 0.08005832864 | D127: 57.03355332 | E127: 1.723138794
A128: 0.54 | B128: 700.8 | C128: 0.03772488151 | D128: 26.43759696 | E128: 0.8347115029
A129: 0.56 | B129: 689.2 | C129: 0.01660926081 | D129: 11.44710255 | E129: 0.3788469951
A130: 0.58 | B130: 677.6 | C130: 0.00680656713 | D130: 4.612129887 | E130: 0.1605923244
A131: =A82 -> 0.6 | B131: 666 | C131: 0.002584385823 | D131: 1.721200958 | E131: 0.06333330845
A132: =A83 -> 0.8 | B132: 528 | C132: 3.059385428e-10 | D132: 1.615355506e-07 | E132: 0.1721201119
A133: =A84 -> 1 | B133: 300 | C133: 0 | D133: 0 | E133: 1.615355506e-08
C135: Mean Temp (K) | D135: =SUM(E101:E133) -> 857.0390016

Sheet Sheet4

Sheet Sheet5

Sheet Sheet6

Sheet Sheet7

Sheet Sheet8

Sheet Sheet9

Sheet Sheet10

Sheet Sheet11

Sheet Sheet12

Sheet Sheet13

Sheet Sheet14

Sheet Sheet15

Sheet Sheet16
